bitfinex-derivatives/quotes_ETHF0:USTF0_20250213
["timestamp","ask_amount","ask_price","bid_price","bid_amount"]
[1739465967605,0.00571897,2627.4,2627.3,0.76112]
[1739465968105,3.97460897,2627.4,2627.3,0.76112]
[1739465969103,3.21351897,2627.4,2627.1,0.00571897]
[1739465969293,3.97462897,2627.4,2627.3,0.76112]
[1739465969906,3.21351897,2627.4,2627.3,0.76112]
[1739465970698,3.97460897,2627.4,2627.3,0.76112]
[1739465971300,3.21351897,2627.4,2627.3,0.76112]
[1739465971810,3.97460897,2627.4,2627.3,0.76112]
[1739465972305,3.21351897,2627.4,2627.3,0.76112]
[1739465972707,3.97460897,2627.4,2627.3,0.76112]
[1739465973202,3.21351897,2627.4,2627.3,0.76112]
[1739465973508,0.5443,2627.7,2627.6,0.76103]
[1739465973509,3.2078,2627.7,2627.6,0.76103]
[1739465974505,0.6,2628.0,2627.5,3.42284698]
[1739465974810,0.761,2627.8,2627.7,0.76098]
[1739465975107,3.2078,2627.8,2627.7,0.76098]
[1739465975303,0.00571897,2627.9,2627.8,0.76098]
[1739465975511,0.00571897,2627.9,2627.8,4.18382698]
[1739465978112,0.00571897,2627.9,2627.8,7.39162698]
[1739465979211,0.00571897,2627.9,2627.8,3.42284698]
[1739465979512,0.76666897,2627.9,2627.8,4.18382698]
[1739465979714,0.76666897,2627.9,2627.8,3.42284698]
[1739465979912,0.76666897,2627.9,2627.8,4.18382698]
[1739465980407,0.00571897,2627.9,2627.8,4.18382698]
[1739465987812,0.00571897,2627.9,2627.8,7.39162698]
[1739465988507,8.97e-06,2627.9,2627.8,13.39162698]
[1739465988709,0.5703,2628.7,2628.6,0.76075]
[1739465988914,3.2078,2629.3,2629.2,0.76057]
[1739465989713,3.2078,2629.6,2629.0,8.44764698]
[1739465990014,0.76042,2629.8,2629.4,3.42284698]
[1739465990216,3.21151187,2629.6,2629.1,3.42284698]
[1739465990516,0.76052,2629.4,2629.2,41.56055]
[1739465990724,3.21151187,2629.6,2629.2,40.8]
[1739465991209,3.2078,2629.3,2629.0,0.00570755]
[1739465991415,0.7606,2629.1,2629.0,0.00570755]
[1739465992304,0.5537,2629.2,2629.0,0.00570755]
[1739465992510,0.5537,2629.2,2629.1,0.7606]
[1739465992712,0.7606,2629.1,2629.0,0.00570755]
[1739465993713,1.31428,2629.2,2629.0,0.76631755]
[1739465993915,0.5537,2629.2,2629.1,0.7606]
[1739465994419,0.7606,2629.1,2629.0,0.00570755]
[1739465994612,0.7606,2629.1,2629.0,0.76632755]
[1739465994917,0.7606,2629.1,2629.0,0.00570755]
[1739465995105,0.7606,2629.1,2629.0,0.76633755]
[1739465995620,1.31429,2629.2,2629.0,0.76633755]
[1739465995817,0.5537,2629.2,2629.1,0.7606]
[1739465996419,3.2078,2629.3,2629.1,3.42284698]
[1739465996615,0.76057,2629.2,2629.1,3.42284698]
[1739465996809,3.2078,2629.3,2629.0,0.76631755]
[1739465997008,3.2078,2629.3,2629.0,0.00570755]
[1739465997214,0.76059,2629.2,2629.1,0.76059]
[1739465997412,0.7606,2629.1,2629.0,0.76632755]
[1739465997720,3.2078,2629.3,2629.2,0.76057]
[1739465998120,0.7606,2629.1,2629.0,0.00570755]
[1739465998314,3.42284698,2629.1,2628.2,4.55174698]
[1739465998615,0.76079,2628.5,2628.2,1.1289]
[1739465998819,3.2078,2628.6,2628.2,1.1289]
[1739465999016,0.76078,2628.5,2628.4,0.76079]
[1739465999219,3.2078,2628.6,2628.2,1.1289]
[1739465999416,0.76083,2628.3,2628.2,0.00570755]
[1739465999713,3.96863,2628.3,2628.2,0.00570755]
[1739466000118,3.2078,2628.3,2628.2,0.00570755]
[1739466000417,3.96863,2628.3,2628.2,0.00570755]
[1739466001225,3.2078,2628.3,2627.5,3.98794698]
[1739466001410,3.2078,2627.9,2627.8,0.76098]
[1739466001722,0.52672681,2628.4,2627.8,3.42284698]
[1739466001919,0.76082,2628.4,2628.1,0.76088]
[1739466002115,3.2078,2628.2,2627.9,0.6035]
[1739466002315,0.76089,2628.1,2628.0,0.00570755]
[1739466003015,1.33409,2628.1,2628.0,0.00570755]
[1739466003312,1.33409,2628.1,2627.0,3.2078]
[1739466003313,1.90238,2627.9,2627.0,3.2078]
[1739466003513,3.2078,2627.2,2627.0,0.76121]
[1739466003710,3.2078,2627.2,2626.9,0.6035]
[1739466003711,0.76127,2626.8,2626.7,0.5995]
[1739466003913,0.76138,2626.4,2626.3,0.6035]
[1739466004224,3.2078,2626.7,2626.6,0.76133]
[1739466004425,3.96885,2627.6,2627.3,0.76112]
[1739466004717,1.07403135,2627.5,2627.4,0.76108]
[1739466004919,0.52663135,2627.5,2627.3,4.18395698]
[1739466005119,0.52663135,2627.5,2627.1,1.816]
[1739466005317,3.2078,2627.6,2627.0,7.23304698]
[1739466005625,3.2078,2627.6,2627.5,0.76106]
[1739466006426,0.00570755,2627.7,2627.6,0.76104]
[1739466006916,0.00570755,2627.7,2627.6,41.56104]
[1739466007718,3.97451755,2627.7,2627.4,0.76108]
[1739466007921,0.76106,2627.6,2627.3,0.76111]
[1739466008224,3.21350755,2627.7,2627.6,0.76104]
[1739466008425,0.00570755,2627.7,2627.6,0.76104]
[1739466008623,7.55e-06,2627.7,2627.6,3.96884]
[1739466009628,7.55e-06,2627.7,2627.6,9.96884]
[1739466009824,3.2078,2628.5,2628.4,0.7608]
[1739466010519,3.2078,2628.5,2628.2,0.76085]
[1739466010719,3.2078,2628.5,2628.1,2.9629]
[1739466010926,3.2078,2628.5,2628.4,0.7608]
[1739466011120,0.00570755,2628.6,2628.5,0.76077]
[1739466012828,0.00570755,2628.6,2628.5,41.56077]
[1739466014029,7.55e-06,2628.6,2628.5,41.56077]
[1739466014822,7.55e-06,2628.6,2628.5,47.56077]
[1739466015031,3.2078,2629.5,2629.4,0.76051]
[1739466015330,3.2078,2629.5,2629.1,3.97849452]
[1739466015635,3.2078,2629.5,2629.4,0.76051]
[1739466016126,3.2078,2629.5,2629.1,3.97849452]
[1739466016318,3.2078,2629.5,2629.4,4.73900452]
[1739466016720,0.00570755,2629.7,2629.6,0.76046]
[1739466017226,3.2078,2630.2,2629.6,5.0228]
[1739466017425,0.76031,2630.1,2630.0,3.97849452]
[1739466017725,3.2078,2630.2,2629.7,3.97849452]
[1739466017924,0.76037,2630.0,2629.8,0.76039]
[1739466018124,3.2078,2629.9,2629.7,3.97849452]
[1739466018325,3.96818,2629.9,2629.7,3.97849452]
[1739466018531,0.7604,2629.8,2629.7,3.97849452]
[1739466018731,3.2078,2629.9,2629.7,3.97849452]
[1739466018933,0.76046,2629.6,2629.5,0.00570755]
[1739466019531,3.2078,2629.9,2629.5,0.00570755]
[1739466019822,3.96826,2629.6,2629.5,0.00570755]
[1739466020230,9.96826,2629.6,2629.5,7.55e-06]
[1739466020439,3.96826,2629.6,2629.5,7.55e-06]
[1739466020636,0.76046,2629.6,2629.5,7.55e-06]
[1739466020835,0.76046,2629.6,2629.5,0.76049755]
[1739466021132,0.76044,2629.7,2629.6,0.76043]
[1739466021334,3.2078,2629.9,2629.5,7.55e-06]
[1739466021536,3.2078,2629.9,2629.8,0.7604]
[1739466022628,3.2078,2629.9,2629.8,1.8984]
[1739466023633,3.96817,2629.9,2629.8,0.5823]
[1739466023832,3.2078,2629.9,2629.8,0.5823]
[1739466024025,3.2078,2629.9,2629.8,1.3427]
[1739466024225,0.00371187,2630.1,2629.8,0.5823]
[1739466024426,0.00371187,2630.1,2630.0,4.73883452]
[1739466025031,0.00371187,2630.1,2629.8,0.5823]
[1739466025333,0.76037,2629.9,2629.8,0.5823]
[1739466025832,0.76046,2629.6,2629.5,7.55e-06]
[1739466026135,0.76046,2629.6,2629.5,0.76046755]
[1739466026322,0.76046,2629.6,2629.5,7.55e-06]
[1739466026522,3.96826,2629.6,2629.5,7.55e-06]
[1739466027328,3.96826,2629.6,2628.6,42.70185]
[1739466027329,1.9013,2629.4,2628.5,3.97849452]
[1739466027533,3.2078,2628.8,2628.5,3.97849452]
[1739466027835,0.76075,2628.6,2628.5,3.97849452]
[1739466028030,0.76074,2628.7,2628.6,0.76074]
[1739466028229,3.2078,2628.8,2628.5,3.97849452]
[1739466028631,0.3043,2628.7,2628.5,3.97849452]
[1739466028830,0.3043,2628.7,2628.6,0.76075]
[1739466030534,3.2078,2629.4,2628.5,3.97849452]
[1739466030734,3.2078,2629.4,2629.3,0.76054]
[1739466031327,3.2078,2629.4,2629.3,41.56054]
[1739466031534,3.335,2629.7,2629.5,0.76049]
[1739466031535,1.521,2629.7,2629.5,0.76049]
[1739466031935,0.4572,2629.6,2629.5,0.76049]
[1739466032236,1.6567,2629.9,2629.5,3.96829]
[1739466032440,1.6567,2629.9,2629.8,7.94669452]
[1739466032643,1.6567,2629.9,2629.8,7.64249452]
[1739466032829,0.19026,2629.9,2629.8,6.87857025]
[1739466033033,0.19026,2629.9,2629.8,7.63897025]
[1739466033433,0.19026,2629.9,2629.8,9.45297025]
[1739466033634,0.49436,2629.9,2629.8,1.814]
[1739466033832,3.85896,2629.9,2629.5,1.36257]
[1739466034136,3.85896,2629.9,2629.3,40.8]
[1739466034438,3.2078,2629.6,2629.2,0.76056]
[1739466034642,3.2078,2629.6,2629.1,1.814]
[1739466034839,3.96837,2629.2,2629.1,1.814]
[1739466035046,3.2078,2629.2,2628.8,0.76067]
[1739466035234,3.2078,2629.2,2628.7,1.814]
[1739466035443,3.2078,2629.2,2628.8,40.8]
[1739466035642,3.2078,2629.2,2628.8,0.76067]
[1739466035837,3.2078,2629.2,2628.7,1.814]
[1739466036234,0.76069,2628.8,2628.6,0.76074]
[1739466036438,3.2078,2628.9,2628.2,26.15990524]
[1739466036639,0.76071,2628.8,2628.5,0.76078]
[1739466036835,3.2078,2628.9,2628.5,40.8]
[1739466037036,0.76075,2628.6,2628.5,40.8]
[1739466038438,0.7607,2628.8,2628.6,0.76074]
[1739466038648,3.96847,2628.9,2628.7,0.76069]
[1739466038946,3.71541,2629.3,2628.8,0.76067]
[1739466038947,0.7606,2629.1,2628.8,0.76067]
[1739466039243,3.2078,2629.2,2629.1,0.7606]
[1739466039439,3.2078,2629.2,2628.5,40.8]
[1739466039642,3.2078,2628.8,2628.4,0.00570755]
[1739466039839,3.96858,2628.5,2628.4,0.00570755]
[1739466041945,0.76097,2627.9,2627.7,0.76099]
[1739466042142,1.90209,2628.3,2627.6,3.2078]
[1739466042143,3.2078,2628.3,2627.6,3.2078]
[1739466042340,3.2078,2628.3,2627.7,1.90253]
[1739466042650,3.2078,2628.3,2627.8,40.8]
[1739466043044,0.76092,2628.0,2627.9,0.76094]
[1739466043247,3.2078,2628.3,2627.8,41.56668755]
[1739466043452,1.5219,2628.2,2628.0,0.76091]
[1739466043751,1.5219,2628.2,2628.1,0.76089]
[1739466044645,3.2078,2628.3,2628.1,0.5662]
[1739466044949,0.76086,2628.2,2628.1,0.5662]
[1739466045139,3.2078,2628.3,2628.2,0.76086]
[1739466045340,0.76086,2628.2,2628.1,0.5662]
[1739466045851,0.76092,2628.0,2627.9,41.56094]
[1739466046153,0.76095,2627.9,2627.8,2.58067755]
[1739466046347,0.76095,2627.9,2627.8,0.00570755]
[1739466047452,0.76111,2627.4,2627.1,0.5683]
[1739466047749,0.76109,2627.5,2627.2,40.8]
[1739466047949,0.76109,2627.5,2627.4,0.76109]
[1739466048351,0.2474,2627.5,2627.4,0.76109]
[1739466048956,0.2474,2627.5,2627.4,5.17899524]
[1739466049149,0.2474,2627.5,2627.4,6.99399524]
[1739466049751,0.76088,2628.2,2628.1,0.76089]
[1739466049948,3.2078,2628.3,2628.2,0.76086]
[1739466050343,0.76076,2628.6,2628.3,0.76083]
[1739466050751,0.76076,2628.6,2628.5,0.76078]
[1739466050955,3.21350755,2628.7,2628.0,2.3615]
[1739466051252,3.21350755,2628.7,2628.6,0.76075]
[1739466051453,0.00570755,2628.7,2628.6,0.76075]
[1739466054657,3.21350755,2628.7,2628.3,0.5792]
[1739466054856,3.21350755,2628.7,2628.0,0.5465]
[1739466055165,3.21350755,2628.7,2628.1,42.614]
[1739466055360,0.00570755,2628.7,2628.6,0.76075]
[1739466055755,3.21350755,2628.7,2628.0,0.5465]
[1739466055956,3.2078,2628.4,2628.0,0.5465]
[1739466056156,0.76076,2628.6,2628.5,0.76077]
[1739466056354,0.76076,2628.6,2628.5,0.76078]
[1739466056562,0.76078,2628.6,2628.4,0.76078]
[1739466056753,3.78770755,2628.7,2628.0,0.5465]
[1739466057065,3.78770755,2628.7,2626.7,2.067]
[1739466057066,3.2078,2628.2,2627.4,0.5846]
[1739466057261,0.76097,2627.9,2627.4,0.5846]
[1739466057562,0.76101,2627.7,2627.6,0.76101]
[1739466057758,1.9022,2628.2,2627.3,2.4178]
[1739466057759,0.5764,2628.1,2628.0,0.76092]
[1739466057967,3.2078,2628.2,2628.1,0.76089]
[1739466058161,0.76096,2627.9,2627.8,0.76096]
[1739466058366,3.2078,2628.2,2627.4,6.32062524]
[1739466058566,3.2078,2628.2,2628.1,0.76089]
[1739466058963,0.76091,2628.1,2627.9,0.6038]
[1739466059163,3.2078,2628.2,2627.9,0.6038]
[1739466059558,3.2078,2628.2,2628.1,0.76089]
[1739466060262,3.2078,2628.2,2627.8,0.76098]
[1739466060462,3.2078,2628.2,2628.1,0.76089]
[1739466060861,3.2078,2628.2,2627.5,3.97639458]
[1739466061062,0.76098,2627.8,2627.5,3.97639458]
[1739466061263,5.11025,2627.9,2627.4,0.5916]
[1739466061464,3.2078,2627.9,2627.4,0.5916]
[1739466061661,0.76107,2627.5,2627.4,1.35267]
[1739466061967,3.2078,2627.9,2627.5,0.76105]
[1739466061968,0.76105,2627.6,2627.5,0.76105]
[1739466062169,0.76105,2627.6,2627.3,0.76111]
[1739466062170,0.76112,2627.4,2627.3,0.76111]
[1739466062357,1.6601,2627.5,2627.4,0.76109]
[1739466062556,0.76112,2627.3,2627.2,40.80570755]
[1739466062867,0.76112,2627.3,2627.2,0.00570755]
[1739466062868,3.96892,2627.3,2627.2,0.00570755]
[1739466063071,5.64832,2627.3,2627.2,0.00570755]
[1739466063569,4.8872,2627.3,2627.2,0.76685755]
[1739466063767,5.64832,2627.3,2627.2,0.00570755]
[1739466064068,4.8872,2627.3,2627.2,0.76685755]
[1739466064463,1.6794,2627.3,2627.2,0.76685755]
[1739466064867,4.76e-06,2627.3,2627.2,3.97465755]
[1739466065363,4.76e-06,2627.3,2627.2,4.54335755]
[1739466065566,4.76e-06,2627.3,2627.2,45.34335755]
[1739466065757,0.14018476,2627.5,2627.4,0.76109]
[1739466065965,3.5121,2628.5,2627.4,4.42755623]
[1739466066161,3.5121,2628.5,2628.0,3.2078]
[1739466066357,3.5121,2628.5,2628.1,43.1592]
[1739466066567,3.5121,2628.5,2628.4,0.7608]
[1739466066768,0.3043,2628.5,2628.4,0.7608]
[1739466067569,1.4842,2628.8,2628.6,0.76075]
[1739466067771,1.4842,2628.8,2628.6,5.78255]
[1739466067966,1.4842,2628.8,2628.7,0.76072]
[1739466068273,1.4842,2628.8,2628.7,41.56072]
[1739466068469,0.76046,2629.6,2628.7,40.8]
[1739466068665,3.2078,2629.7,2629.0,7.63535623]
[1739466068871,3.2078,2629.7,2629.1,1.814]
[1739466068872,0.76052,2629.4,2629.1,1.814]
[1739466069175,0.01980755,2629.5,2629.4,0.76052]
[1739466071771,0.01980755,2629.5,2629.4,5.18807623]
[1739466072167,0.01980755,2629.5,2629.4,7.00207623]
[1739466073466,0.01980755,2629.5,2629.4,5.18807623]
[1739466073669,0.01980755,2629.5,2629.3,3.2078]
[1739466073872,0.01980755,2629.5,2629.2,2.3646]
[1739466074376,0.01980755,2629.5,2629.4,0.76052]
[1739466074974,0.01980755,2629.5,2629.4,5.18807623]
[1739466075174,1.4837,2629.8,2629.7,0.76043]
[1739466075175,0.70256,2629.8,2629.7,0.76043]
[1739466075371,0.70256,2629.8,2629.7,5.78223]
[1739466075575,3.2078,2630.7,2629.7,5.0218]
[1739466075876,3.2078,2630.7,2630.3,0.76024]
[1739466075877,0.76021,2630.5,2630.3,0.76024]
[1739466076075,3.2078,2630.7,2630.0,3.2078]
[1739466076375,3.21350755,2630.7,2630.2,4.42755623]
[1739466076574,3.97365755,2630.7,2630.5,0.76018]
[1739466076875,3.21350755,2630.7,2630.6,0.76017]
[1739466077570,0.00570755,2630.7,2630.6,0.76017]
[1739466078263,0.76585755,2630.7,2630.5,0.76018]
[1739466078475,0.76018,2630.6,2630.4,40.8]
[1739466078674,0.00570755,2630.7,2630.4,40.8]
[1739466078976,0.00570755,2630.7,2630.6,0.76017]
[1739466079577,0.00570755,2630.7,2630.4,40.8]
[1739466079973,0.76019,2630.6,2630.4,2.57321]
[1739466080172,0.00570755,2630.7,2630.5,0.7602]
[1739466080481,0.75995,2631.4,2631.2,0.75998]
[1739466080674,0.75996,2631.4,2631.2,0.75999]
[1739466080871,0.75992,2631.5,2631.3,0.75995]
[1739466081267,3.911,2631.6,2631.1,1.90007]
[1739466081472,3.911,2631.6,2631.0,6.24055623]
[1739466081673,3.91471187,2631.6,2631.5,0.75991]
[1739466081874,0.70691187,2631.6,2631.5,2.57291]
[1739466082072,0.00371187,2631.6,2631.5,2.57291]
[1739466082270,0.00371187,2631.6,2631.5,5.78071]
[1739466083076,0.00371187,2631.6,2631.4,4.42755623]
[1739466083284,0.00371187,2631.6,2631.2,3.2078]
[1739466083581,0.75994,2631.4,2631.3,1.813]
[1739466083770,3.21151187,2631.6,2631.0,6.24055623]
[1739466083975,0.76005,2631.0,2630.9,3.7671]
[1739466084175,3.2078,2631.3,2630.9,0.5593]
[1739466084575,0.76001,2631.2,2631.0,0.76003]
[1739466085181,0.76005,2631.1,2630.9,0.5593]
[1739466085373,3.2078,2631.0,2630.6,4.42755623]
[1739466085579,3.2078,2631.0,2630.6,1.812]
[1739466085982,3.96786,2631.0,2630.8,0.76009]
[1739466086177,3.2078,2631.0,2630.6,1.812]
[1739466086379,3.2078,2631.0,2630.4,3.7886]
[1739466086573,0.76018,2630.6,2630.3,40.80570755]
[1739466086778,0.76018,2630.6,2630.3,1.81770755]
[1739466087077,3.96796,2630.7,2630.5,0.7602]
[1739466087277,3.2078,2630.7,2630.3,40.80570755]
[1739466087479,3.2078,2630.7,2630.6,0.76017]
[1739466088079,3.2078,2630.7,2630.3,40.80570755]
[1739466088484,0.76023,2630.4,2630.3,0.00570755]
[1739466088682,3.96803,2630.4,2630.3,0.00570755]
[1739466088882,3.2078,2630.4,2630.3,0.76596755]
[1739466089083,3.2078,2630.8,2630.3,0.00570755]
[1739466089283,3.96792,2630.8,2630.6,0.76014]
[1739466089491,3.2078,2630.8,2630.3,0.00570755]
[1739466089787,3.96793,2630.8,2630.3,0.00570755]
[1739466089983,3.2078,2630.8,2630.3,0.00570755]
[1739466090188,3.2078,2631.2,2631.0,0.76003]
[1739466090383,0.75995,2631.4,2631.2,0.75998]
[1739466090583,0.76001,2631.2,2631.0,0.76003]
[1739466090779,3.96781,2631.2,2631.1,0.76002]
[1739466090989,3.2078,2631.7,2631.5,0.75991]
[1739466091685,3.2078,2631.7,2631.5,41.55991]
[1739466092491,0.7033,2631.8,2631.5,40.8]
[1739466092685,0.76359187,2631.6,2631.5,42.612]
[1739466092884,0.00371187,2631.6,2631.5,42.612]
[1739466093086,0.00371187,2631.6,2631.5,43.37191]
[1739466093493,0.76359187,2631.6,2631.5,43.37191]
[1739466093691,0.00371187,2631.6,2631.5,42.612]
[1739466093889,0.76359187,2631.6,2631.5,42.612]
[1739466094091,0.76359187,2631.6,2631.0,4.42755623]
[1739466094092,0.75997,2631.3,2631.0,4.42755623]
[1739466094393,3.2078,2631.4,2631.1,0.76001]
[1739466094589,3.2078,2631.4,2631.0,6.23955623]
[1739466094890,3.2078,2631.4,2631.3,0.75997]
[1739466095098,0.00371187,2631.6,2631.5,0.75991]
[1739466095291,0.76361187,2631.6,2631.4,0.75993]
[1739466095797,0.00371187,2631.6,2631.5,0.75991]
[1739466096686,0.00371187,2631.6,2631.5,2.57191]
[1739466096889,0.00371187,2631.6,2631.5,3.15311]
[1739466097291,0.00371187,2631.6,2631.5,43.95311]
[1739466097891,1.87e-06,2631.6,2631.5,43.95311]
[1739466098093,1.87e-06,2631.6,2631.5,44.35878637]
[1739466098601,1.87e-06,2631.6,2631.5,43.95311]
[1739466103602,1.87e-06,2631.6,2631.5,47.91683088]
[1739466104906,1.87e-06,2631.6,2631.5,48.21854809]
[1739466105105,1.87e-06,2631.6,2631.5,47.91683088]
[1739466109807,1.87e-06,2631.6,2631.5,46.10483088]
[1739466110006,1.87e-06,2631.6,2631.5,47.91583088]
[1739466111115,1.87e-06,2631.6,2631.5,53.91583088]
[1739466111607,3.2078,2632.3,2632.2,0.75971]
[1739466111813,0.53006214,2632.5,2632.4,0.75965]
[1739466112115,0.5663,2632.6,2632.5,0.75962]
[1739466112308,0.5663,2632.6,2632.5,4.72334088]
[1739466112706,4.56723,2632.8,2632.5,4.72334088]
[1739466112707,3.2078,2632.8,2632.5,4.72334088]
[1739466112912,0.5642,2633.0,2632.9,0.7595]
[1739466113219,0.75948,2633.0,2632.8,3.96372088]
[1739466113513,3.8057,2633.1,2632.8,5.77472088]
[1739466113514,0.7595,2632.9,2632.8,5.77472088]
[1739466113910,0.5642,2633.0,2632.8,3.96372088]
[1739466114112,0.7595,2632.9,2632.8,3.96372088]
[1739466114413,0.75959,2632.6,2632.5,5.77472088]
[1739466115011,3.772,2633.0,2632.6,0.75957]
[1739466115210,4.53148,2633.0,2632.9,3.96372088]
[1739466116013,0.75956,2632.7,2632.6,3.96372088]
[1739466116214,0.75959,2632.6,2632.5,1.811]
[1739466116517,3.2078,2632.7,2632.4,1.811]
[1739466116714,0.75952,2632.9,2632.6,3.96372088]
[1739466117016,3.2078,2632.7,2632.6,3.96372088]
[1739466117212,3.772,2633.0,2632.6,3.96372088]
[1739466117422,3.772,2633.0,2632.9,0.7595]
[1739466117612,3.772,2633.0,2632.9,4.72322088]
[1739466118017,3.2078,2633.0,2632.9,4.72322088]
[1739466118323,3.9672,2633.3,2633.2,0.75942]
[1739466118521,0.75942,2633.2,2633.1,0.75943]
[1739466118819,3.96721,2633.3,2632.9,5.77472088]
[1739466119017,3.2078,2633.6,2633.2,3.96372088]
[1739466119314,3.2078,2633.6,2633.5,4.72305088]
[1739466119914,3.9671,2633.6,2633.5,3.96372088]
[1739466120616,3.2078,2633.6,2633.5,4.72305088]
[1739466120817,3.2078,2634.0,2633.5,3.96372088]
[1739466121014,3.2078,2634.0,2633.9,0.75922]
[1739466121217,3.2078,2634.3,2634.2,0.75913]
[1739466121413,3.2078,2634.3,2634.2,4.72285088]
[1739466121717,3.2078,2634.3,2633.9,5.77372088]
[1739466121914,1.89761,2634.6,2633.7,0.76495638]
[1739466121915,3.2078,2634.0,2633.7,1.81569638]
[1739466122108,0.75924,2633.8,2633.7,0.00569638]
[1739466123415,0.75936,2633.4,2633.3,3.96372088]
[1739466123721,0.75942,2633.3,2633.1,1.81]
[1739466124117,0.75942,2633.3,2633.1,2.56944]
[1739466124520,1.1419,2633.9,2633.8,0.75924]
[1739466124724,1.1419,2633.9,2633.8,4.72296088]
[1739466125209,0.00565917,2634.1,2634.0,0.75919]
[1739466125722,0.7592,2634.0,2633.8,3.96372088]
[1739466125922,0.00565917,2634.1,2633.8,3.96372088]
[1739466126123,0.00565917,2634.1,2634.0,0.75919]
[1739466126620,0.00565917,2634.1,2633.8,3.96372088]
[1739466127122,0.00565917,2634.1,2634.0,0.75919]
[1739466127315,0.00565917,2634.1,2633.8,3.96372088]
[1739466127518,0.75932,2633.6,2633.5,3.96372088]
[1739466127912,3.96712,2633.6,2633.5,3.96372088]
[1739466128315,3.2078,2633.6,2633.5,3.96372088]
[1739466128522,3.9671,2633.6,2633.5,3.96372088]
[1739466128715,3.2078,2633.6,2633.5,4.72305088]
[1739466128918,0.75921,2634.0,2633.8,0.75923]
[1739466129118,3.21345917,2634.1,2633.8,3.96372088]
[1739466129427,0.75922,2633.9,2633.8,3.96372088]
[1739466130019,3.21345917,2634.1,2633.6,1.81]
[1739466130222,0.75927,2633.7,2633.6,1.81]
[1739466130523,0.7593,2633.6,2633.5,3.96372088]
[1739466130720,0.5542,2633.7,2633.5,3.96372088]
[1739466130918,1.31347,2633.7,2633.6,0.7593]
[1739466131222,0.75939,2633.3,2633.2,3.96372088]
[1739466131520,5.66019,2633.7,2633.2,3.96372088]
[1739466131521,3.96718,2633.4,2633.3,0.75939]
[1739466131726,3.2078,2633.4,2633.3,0.75939]
[1739466132022,0.5784,2633.6,2633.2,3.96372088]
[1739466132422,0.75938,2633.4,2633.3,0.75939]
[1739466132623,0.5784,2633.6,2633.2,3.96372088]
[1739466132823,0.5784,2633.6,2633.5,0.75933]
[1739466133322,3.762,2633.7,2633.2,3.96372088]
[1739466133722,0.75932,2633.6,2633.5,0.75931]
[1739466133923,3.762,2633.7,2633.6,0.7593]
[1739466134220,0.00565917,2634.1,2633.6,1.81]
[1739466134425,0.00565917,2634.1,2633.9,3.96372088]
[1739466134826,0.00565917,2634.1,2634.0,40.8]
[1739466135021,0.76481917,2634.1,2634.0,40.8]
[1739466135216,0.00565917,2634.1,2633.3,3.96372088]
[1739466135419,3.2078,2633.8,2633.3,3.96372088]
[1739466135622,3.2078,2633.8,2633.4,40.8]
[1739466135819,3.2078,2633.8,2633.7,0.75927]
[1739466136028,3.2078,2633.8,2633.4,40.8]
[1739466136233,3.2078,2633.8,2633.4,41.55936]
[1739466136234,0.75933,2633.5,2633.4,41.55936]
[1739466136427,0.5736,2633.7,2633.4,40.8]
[1739466136621,3.96706,2633.8,2633.6,0.7593]
[1739466136822,0.5486,2634.0,2633.4,40.8]
[1739466137020,0.75923,2633.9,2633.8,0.75923]
[1739466137224,0.75926,2633.8,2633.7,0.75924]
[1739466137426,0.75923,2633.9,2633.8,0.75923]
[1739466137635,3.78705917,2634.1,2634.0,0.75919]
[1739466137826,3.21345917,2634.1,2634.0,0.75919]
[1739466138027,3.21345917,2634.1,2633.9,4.72292088]
[1739466138028,0.75919,2634.0,2633.9,4.72292088]
[1739466138230,3.21345917,2634.1,2634.0,0.75919]
[1739466138430,0.75924,2633.8,2633.7,3.72786]
[1739466139235,0.75924,2633.8,2633.7,3.72787]
[1739466139434,3.2078,2633.8,2633.4,40.8]
[1739466139627,3.96708,2633.8,2633.7,0.75927]
[1739466139830,3.96707,2633.8,2633.7,0.75927]
[1739466140026,0.75932,2633.6,2633.5,0.75929]
[1739466140540,0.75932,2633.6,2633.5,0.7593]
[1739466140731,3.2078,2633.8,2633.4,40.8]
[1739466141037,0.75933,2633.5,2633.4,40.8]
[1739466141339,3.96713,2633.5,2633.4,40.8]
[1739466141832,0.7593,2633.7,2633.4,40.8]
[1739466142134,0.75929,2633.7,2633.6,0.75927]
[1739466142335,3.7906,2633.9,2633.4,40.8]
[1739466142537,0.75932,2633.6,2633.5,0.75929]
[1739466142835,0.75928,2633.8,2633.7,0.75925]
[1739466143538,3.2078,2633.9,2633.8,0.75924]
[1739466143733,3.96702,2633.9,2633.8,0.75924]
[1739466144139,3.2078,2633.9,2633.8,0.75924]
[1739466144639,3.96702,2633.9,2633.8,0.86084]
[1739466144937,3.96702,2633.9,2633.8,0.1016]
[1739466145833,0.75922,2633.9,2633.8,0.86084]
[1739466146033,0.00565917,2634.1,2633.8,0.1016]
[1739466146235,0.00565917,2634.1,2634.0,4.72291088]
[1739466146637,0.00565917,2634.1,2634.0,0.82809]
[1739466147035,0.5318035,2635.0,2634.0,6.0689]
[1739466147338,3.2078,2635.1,2634.7,3.96372088]
[1739466147535,0.75896,2634.8,2634.7,3.96372088]
[1739466147735,0.75896,2634.8,2634.7,44.76372088]
[1739466148339,3.96676,2634.8,2634.7,45.50532088]
[1739466148541,3.96676,2634.8,2634.7,46.26431088]
[1739466148938,3.2078,2634.8,2634.7,45.50532088]
[1739466149137,3.96676,2634.8,2634.7,41.5416]
[1739466150233,3.96676,2634.8,2634.7,0.7416]
[1739466150434,3.2078,2634.8,2634.7,0.7416]
[1739466150744,3.2078,2634.8,2634.7,1.50059]
[1739466151244,3.2078,2635.1,2634.7,4.70532088]
[1739466151632,0.75896,2634.8,2634.7,4.70532088]
[1739466151931,3.96676,2634.8,2634.7,0.7416]
[1739466152136,0.75896,2634.8,2634.7,0.7416]
[1739466152441,3.2078,2635.1,2634.7,0.7416]